Workbook

Sheet Project
B2: Project Planning | J2: Shelf Planning Tool Version: | K2: 2025-07-16:1
B3: TurnLoader
B4: HL powered by EasyFill
B6: Date: | E6: =Picture -> 
B7: Name:
B8: Project:
B9: TurnLoader Type | C9: Multideck
B10: TurnLoader Model | C10: =_xlfn.XLOOKUP(getMultideck,tableMultidecks[Multidecks],tableMultidecks[TurnLoader],"") -> TurnLoader MD 1250/550
B12: TurnLoader Usable Height: | C12: =_xlfn.XLOOKUP(getMultideck,tableMultidecks[Multidecks],tableMultidecks[Usable Height],"") -> 1483 | D12: mm
B14: Refrigeration Unit | C14: Carrier MonaxEco 63
B15: Inner height: | C15: =_xlfn.XLOOKUP(getMultideck,tableMultidecks[Multidecks],tableMultidecks[Inner height],"") -> 1785
B16: Shelf depth: | C16: =_xlfn.XLOOKUP(getMultideck,tableMultidecks[Multidecks],tableMultidecks[Shelf depth],"") -> 500
B17: Distance back wall to door | C17: =_xlfn.XLOOKUP(getMultideck,tableMultidecks[Multidecks],tableMultidecks[Distans backwall to door],"") -> 610
B20: Number of Sectins | C20: =COUNTIF(C23:G23,">0") -> 2
C21: Section 1 | D21: Section 2 | E21: Section 3 | F21: Section 4 | G21: Section 5
B22: Section name
B23: Number of existing shelves | C23: =COUNTA(C25:C33) -> 3 | D23: =COUNTA(D25:D33) -> 3 | E23: 0 | F23: 0 | G23: 0
B24: Total number of shelves | C24: =SUM(C23:G23) -> 6 | N24: Helper Table for Sizes
B25: Product height Shelf 9 | J25: ="Example with usable height " & $C$12 & " mm" -> Example with usable height 1483 mm | K25: mm | N25: =_xlfn.LET( _xlpm.size,_xlfn.XLOOKUP(C25,tableProducts[Name],tableProducts[Product Height],C25,0), IF(_xlpm.size=0,"",_xlpm.size) ) ->  | O25: =_xlfn.LET( _xlpm.size,_xlfn.XLOOKUP(D25,tableProducts[Name],tableProducts[Product Height],D25,0), IF(_xlpm.size=0,"",_xlpm.size) ) ->  | P25: =_xlfn.LET( _xlpm.size,_xlfn.XLOOKUP(E25,tableProducts[Name],tableProducts[Product Height],E25,0), IF(_xlpm.size=0,"",_xlpm.size) ) ->  | Q25: =_xlfn.LET( _xlpm.size,_xlfn.XLOOKUP(F25,tableProducts[Name],tableProducts[Product Height],F25,0), IF(_xlpm.size=0,"",_xlpm.size) ) ->  | R25: =_xlfn.LET( _xlpm.size,_xlfn.XLOOKUP(G25,tableProducts[Name],tableProducts[Product Height],G25,0), IF(_xlpm.size=0,"",_xlpm.size) ) -> 
B26: Product height Shelf 8 | J26: Avg. product height with 4 shelves | K26: =_xlfn.LET( _xlpm.noOfShelves,4, ROUNDDOWN(($C$12-((shelfHeight+stdMarginSpace)*_xlpm.noOfShelves))/_xlpm.noOfShelves,0)) -> 318 | N26: =_xlfn.LET( _xlpm.size,_xlfn.XLOOKUP(C26,tableProducts[Name],tableProducts[Product Height],C26,0), IF(_xlpm.size=0,"",_xlpm.size) ) ->  | O26: =_xlfn.LET( _xlpm.size,_xlfn.XLOOKUP(D26,tableProducts[Name],tableProducts[Product Height],D26,0), IF(_xlpm.size=0,"",_xlpm.size) ) ->  | P26: =_xlfn.LET( _xlpm.size,_xlfn.XLOOKUP(E26,tableProducts[Name],tableProducts[Product Height],E26,0), IF(_xlpm.size=0,"",_xlpm.size) ) ->  | Q26: =_xlfn.LET( _xlpm.size,_xlfn.XLOOKUP(F26,tableProducts[Name],tableProducts[Product Height],F26,0), IF(_xlpm.size=0,"",_xlpm.size) ) ->  | R26: =_xlfn.LET( _xlpm.size,_xlfn.XLOOKUP(G26,tableProducts[Name],tableProducts[Product Height],G26,0), IF(_xlpm.size=0,"",_xlpm.size) ) -> 
B27: Product height Shelf 7 | J27: Avg. product height with 5 shelves | K27: =_xlfn.LET( _xlpm.noOfShelves,5, ROUNDDOWN(($C$12-((shelfHeight+stdMarginSpace)*_xlpm.noOfShelves))/_xlpm.noOfShelves,0)) -> 244 | N27: =_xlfn.LET( _xlpm.size,_xlfn.XLOOKUP(C27,tableProducts[Name],tableProducts[Product Height],C27,0), IF(_xlpm.size=0,"",_xlpm.size) ) ->  | O27: =_xlfn.LET( _xlpm.size,_xlfn.XLOOKUP(D27,tableProducts[Name],tableProducts[Product Height],D27,0), IF(_xlpm.size=0,"",_xlpm.size) ) ->  | P27: =_xlfn.LET( _xlpm.size,_xlfn.XLOOKUP(E27,tableProducts[Name],tableProducts[Product Height],E27,0), IF(_xlpm.size=0,"",_xlpm.size) ) ->  | Q27: =_xlfn.LET( _xlpm.size,_xlfn.XLOOKUP(F27,tableProducts[Name],tableProducts[Product Height],F27,0), IF(_xlpm.size=0,"",_xlpm.size) ) ->  | R27: =_xlfn.LET( _xlpm.size,_xlfn.XLOOKUP(G27,tableProducts[Name],tableProducts[Product Height],G27,0), IF(_xlpm.size=0,"",_xlpm.size) ) -> 
B28: Product height Shelf 6 | J28: Avg. product height with 6 shelves | K28: =_xlfn.LET( _xlpm.noOfShelves,6, ROUNDDOWN(($C$12-((shelfHeight+stdMarginSpace)*_xlpm.noOfShelves))/_xlpm.noOfShelves,0)) -> 195 | N28: =_xlfn.LET( _xlpm.size,_xlfn.XLOOKUP(C28,tableProducts[Name],tableProducts[Product Height],C28,0), IF(_xlpm.size=0,"",_xlpm.size) ) ->  | O28: =_xlfn.LET( _xlpm.size,_xlfn.XLOOKUP(D28,tableProducts[Name],tableProducts[Product Height],D28,0), IF(_xlpm.size=0,"",_xlpm.size) ) ->  | P28: =_xlfn.LET( _xlpm.size,_xlfn.XLOOKUP(E28,tableProducts[Name],tableProducts[Product Height],E28,0), IF(_xlpm.size=0,"",_xlpm.size) ) ->  | Q28: =_xlfn.LET( _xlpm.size,_xlfn.XLOOKUP(F28,tableProducts[Name],tableProducts[Product Height],F28,0), IF(_xlpm.size=0,"",_xlpm.size) ) ->  | R28: =_xlfn.LET( _xlpm.size,_xlfn.XLOOKUP(G28,tableProducts[Name],tableProducts[Product Height],G28,0), IF(_xlpm.size=0,"",_xlpm.size) ) -> 
B29: Product height Shelf 5 | J29: Avg. product height with 7 shelves | K29: =_xlfn.LET( _xlpm.noOfShelves,7, ROUNDDOWN(($C$12-((shelfHeight+stdMarginSpace)*_xlpm.noOfShelves))/_xlpm.noOfShelves,0)) -> 159 | N29: =_xlfn.LET( _xlpm.size,_xlfn.XLOOKUP(C29,tableProducts[Name],tableProducts[Product Height],C29,0), IF(_xlpm.size=0,"",_xlpm.size) ) ->  | O29: =_xlfn.LET( _xlpm.size,_xlfn.XLOOKUP(D29,tableProducts[Name],tableProducts[Product Height],D29,0), IF(_xlpm.size=0,"",_xlpm.size) ) ->  | P29: =_xlfn.LET( _xlpm.size,_xlfn.XLOOKUP(E29,tableProducts[Name],tableProducts[Product Height],E29,0), IF(_xlpm.size=0,"",_xlpm.size) ) ->  | Q29: =_xlfn.LET( _xlpm.size,_xlfn.XLOOKUP(F29,tableProducts[Name],tableProducts[Product Height],F29,0), IF(_xlpm.size=0,"",_xlpm.size) ) ->  | R29: =_xlfn.LET( _xlpm.size,_xlfn.XLOOKUP(G29,tableProducts[Name],tableProducts[Product Height],G29,0), IF(_xlpm.size=0,"",_xlpm.size) ) -> 
B30: Product height Shelf 4 | J30: Avg. product height with 8 shelves | K30: =_xlfn.LET( _xlpm.noOfShelves,8, ROUNDDOWN(($C$12-((shelfHeight+stdMarginSpace)*_xlpm.noOfShelves))/_xlpm.noOfShelves,0)) -> 133 | N30: =_xlfn.LET( _xlpm.size,_xlfn.XLOOKUP(C30,tableProducts[Name],tableProducts[Product Height],C30,0), IF(_xlpm.size=0,"",_xlpm.size) ) ->  | O30: =_xlfn.LET( _xlpm.size,_xlfn.XLOOKUP(D30,tableProducts[Name],tableProducts[Product Height],D30,0), IF(_xlpm.size=0,"",_xlpm.size) ) ->  | P30: =_xlfn.LET( _xlpm.size,_xlfn.XLOOKUP(E30,tableProducts[Name],tableProducts[Product Height],E30,0), IF(_xlpm.size=0,"",_xlpm.size) ) ->  | Q30: =_xlfn.LET( _xlpm.size,_xlfn.XLOOKUP(F30,tableProducts[Name],tableProducts[Product Height],F30,0), IF(_xlpm.size=0,"",_xlpm.size) ) ->  | R30: =_xlfn.LET( _xlpm.size,_xlfn.XLOOKUP(G30,tableProducts[Name],tableProducts[Product Height],G30,0), IF(_xlpm.size=0,"",_xlpm.size) ) -> 
B31: Product height Shelf 3 | C31: 33 cl Classic Can | D31: 150 cl PET Bottle | J31: Avg. product height with 9 shelves | K31: =_xlfn.LET( _xlpm.noOfShelves,9, ROUNDDOWN(($C$12-((shelfHeight+stdMarginSpace)*_xlpm.noOfShelves))/_xlpm.noOfShelves,0)) -> 112 | N31: =_xlfn.LET( _xlpm.size,_xlfn.XLOOKUP(C31,tableProducts[Name],tableProducts[Product Height],C31,0), IF(_xlpm.size=0,"",_xlpm.size) ) -> 115 | O31: =_xlfn.LET( _xlpm.size,_xlfn.XLOOKUP(D31,tableProducts[Name],tableProducts[Product Height],D31,0), IF(_xlpm.size=0,"",_xlpm.size) ) -> 325 | P31: =_xlfn.LET( _xlpm.size,_xlfn.XLOOKUP(E31,tableProducts[Name],tableProducts[Product Height],E31,0), IF(_xlpm.size=0,"",_xlpm.size) ) ->  | Q31: =_xlfn.LET( _xlpm.size,_xlfn.XLOOKUP(F31,tableProducts[Name],tableProducts[Product Height],F31,0), IF(_xlpm.size=0,"",_xlpm.size) ) ->  | R31: =_xlfn.LET( _xlpm.size,_xlfn.XLOOKUP(G31,tableProducts[Name],tableProducts[Product Height],G31,0), IF(_xlpm.size=0,"",_xlpm.size) ) -> 
B32: Product height Shelf 2 | C32: 50 cl PET Bottle | D32: 33 cl Classic Can | N32: =_xlfn.LET( _xlpm.size,_xlfn.XLOOKUP(C32,tableProducts[Name],tableProducts[Product Height],C32,0), IF(_xlpm.size=0,"",_xlpm.size) ) -> 213 | O32: =_xlfn.LET( _xlpm.size,_xlfn.XLOOKUP(D32,tableProducts[Name],tableProducts[Product Height],D32,0), IF(_xlpm.size=0,"",_xlpm.size) ) -> 115 | P32: =_xlfn.LET( _xlpm.size,_xlfn.XLOOKUP(E32,tableProducts[Name],tableProducts[Product Height],E32,0), IF(_xlpm.size=0,"",_xlpm.size) ) ->  | Q32: =_xlfn.LET( _xlpm.size,_xlfn.XLOOKUP(F32,tableProducts[Name],tableProducts[Product Height],F32,0), IF(_xlpm.size=0,"",_xlpm.size) ) ->  | R32: =_xlfn.LET( _xlpm.size,_xlfn.XLOOKUP(G32,tableProducts[Name],tableProducts[Product Height],G32,0), IF(_xlpm.size=0,"",_xlpm.size) ) -> 
B33: Product height Shelf 1 | C33: 33 cl Classic Can | D33: 33 cl Sleek Can | N33: =_xlfn.LET( _xlpm.size,_xlfn.XLOOKUP(C33,tableProducts[Name],tableProducts[Product Height],C33,0), IF(_xlpm.size=0,"",_xlpm.size) ) -> 115 | O33: =_xlfn.LET( _xlpm.size,_xlfn.XLOOKUP(D33,tableProducts[Name],tableProducts[Product Height],D33,0), IF(_xlpm.size=0,"",_xlpm.size) ) -> 145 | P33: =_xlfn.LET( _xlpm.size,_xlfn.XLOOKUP(E33,tableProducts[Name],tableProducts[Product Height],E33,0), IF(_xlpm.size=0,"",_xlpm.size) ) ->  | Q33: =_xlfn.LET( _xlpm.size,_xlfn.XLOOKUP(F33,tableProducts[Name],tableProducts[Product Height],F33,0), IF(_xlpm.size=0,"",_xlpm.size) ) ->  | R33: =_xlfn.LET( _xlpm.size,_xlfn.XLOOKUP(G33,tableProducts[Name],tableProducts[Product Height],G33,0), IF(_xlpm.size=0,"",_xlpm.size) ) -> 
B35: Number of TurnLoaders: | C35: =C20 -> 2 | J35: Standard product heights | K35: mm
C36: =C21 -> Section 1 | D36: =D21 -> Section 2 | E36: Section 3 | F36: Section 4 | G36: Section 5 | J36: =tableProducts[] -> 25 cl Slim Can | K36: 135
B37: Number of shelves | C37: =COUNTA(C25:C33) -> 3 | D37: =COUNTA(D25:D33) -> 3 | E37: =COUNTA(E25:E33) -> 0 | F37: =COUNTA(F25:F33) -> 0 | G37: =COUNTA(G25:G33) -> 0 | J37: 33 cl Classic Can | K37: 115
B38: Total number of shelves | C38: =SUM(C37:G37) -> 6 | J38: 33 cl Sleek Can | K38: 145
B39: ="Used height (max " & C12 & ")" -> Used height (max 1483) | C39: =IFERROR(getUsedHeight(C$40,N$25:N$33,$C$12),"") -> 599 | D39: =IFERROR(getUsedHeight(D$40,O$25:O$33,$C$12),"") -> 741 | E39: =IFERROR(getUsedHeight(E$40,P$25:P$33,$C$12),"") -> 0 | F39: =IFERROR(getUsedHeight(F$40,Q$25:Q$33,$C$12),"") -> 0 | G39: =IFERROR(getUsedHeight(G$40,R$25:R$33,$C$12),"") -> 0 | J39: 33 cl Glass Bottle | K39: 240
B40: Distance above products | C40: 15 mm | D40: 15 mm | E40: 15 mm | F40: 15 mm | G40: 15 mm | J40: 50 cl Std Can | K40: 168
B41: Even spacing | C41: =_xlfn.LET( _xlpm.isEvenlyDistributed,IF(_xlfn.XLOOKUP(C40,tableClearance[Description],tableClearance[Value],0,0)="even",TRUE,FALSE), _xlpm.clearance,IFERROR(getClearance(C40,N25:N33,$C$12),""), IF(_xlpm.isEvenlyDistributed,_xlpm.clearance,"")) ->  | D41: =_xlfn.LET( _xlpm.isEvenlyDistributed,IF(_xlfn.XLOOKUP(D40,tableClearance[Description],tableClearance[Value],0,0)="even",TRUE,FALSE), _xlpm.clearance,IFERROR(getClearance(D40,O25:O33,$C$12),""), IF(_xlpm.isEvenlyDistributed,_xlpm.clearance,"")) ->  | E41: =_xlfn.LET( _xlpm.isEvenlyDistributed,IF(_xlfn.XLOOKUP(E40,tableClearance[Description],tableClearance[Value],0,0)="even",TRUE,FALSE), _xlpm.clearance,IFERROR(getClearance(E40,P25:P33,$C$12),""), IF(_xlpm.isEvenlyDistributed,_xlpm.clearance,"")) ->  | F41: =_xlfn.LET( _xlpm.isEvenlyDistributed,IF(_xlfn.XLOOKUP(F40,tableClearance[Description],tableClearance[Value],0,0)="even",TRUE,FALSE), _xlpm.clearance,IFERROR(getClearance(F40,Q25:Q33,$C$12),""), IF(_xlpm.isEvenlyDistributed,_xlpm.clearance,"")) ->  | G41: =_xlfn.LET( _xlpm.isEvenlyDistributed,IF(_xlfn.XLOOKUP(G40,tableClearance[Description],tableClearance[Value],0,0)="even",TRUE,FALSE), _xlpm.clearance,IFERROR(getClearance(G40,R25:R33,$C$12),""), IF(_xlpm.isEvenlyDistributed,_xlpm.clearance,"")) ->  | J41: 50 cl PET Bottle | K41: 213
B42: Frontstopper 9 | C42: =getFrontstop(C43) ->  | D42: =getFrontstop(D43) ->  | E42: =getFrontstop(E43) ->  | F42: =getFrontstop(F43) ->  | G42: =getFrontstop(G43) ->  | J42: 150 cl PET Bottle | K42: 325
B43: Product height Shelf 9 | C43: =_xlfn.LET(_xlpm.value,_xlfn.XLOOKUP($B43,$B$25:$B$33,N$25:N$33,NA()),IF(ISBLANK(_xlpm.value),"",_xlpm.value)) ->  | D43: =_xlfn.LET(_xlpm.value,_xlfn.XLOOKUP($B43,$B$25:$B$33,O$25:O$33,NA()),IF(ISBLANK(_xlpm.value),"",_xlpm.value)) -> 
B44: Shelf height H9 | C44: =IF(AND(C43<>"",C46<>""),C47+C46+getClearance(C$40,C$25:C$33,$C$12)+shelfHeight,"") ->  | D44: =IF(AND(D43<>"",D46<>""),D47+D46+getClearance(D$40,D$25:D$33,$C$12)+shelfHeight,"") ->  | E44: =IF(AND(E43<>"",E46<>""),E47+E46+getClearance(E$40,E$25:E$33,$C$12)+shelfHeight,"") ->  | F44: =IF(AND(F43<>"",F46<>""),F47+F46+getClearance(F$40,F$25:F$33,$C$12)+shelfHeight,"") ->  | G44: =IF(AND(G43<>"",G46<>""),G47+G46+getClearance(G$40,G$25:G$33,$C$12)+shelfHeight,"") -> 
B45: Frontstopper 8 | C45: =getFrontstop(C46) ->  | D45: =getFrontstop(D46) ->  | E45: =getFrontstop(E46) ->  | F45: =getFrontstop(F46) ->  | G45: =getFrontstop(G46) -> 
B46: Product height Shelf 8 | C46: =_xlfn.LET(_xlpm.value,_xlfn.XLOOKUP($B46,$B$25:$B$33,N$25:N$33,NA()),IF(ISBLANK(_xlpm.value),"",_xlpm.value)) ->  | D46: =_xlfn.LET(_xlpm.value,_xlfn.XLOOKUP($B46,$B$25:$B$33,O$25:O$33,NA()),IF(ISBLANK(_xlpm.value),"",_xlpm.value)) -> 
B47: Shelf height H8 | C47: =IF(AND(C46<>"",C49<>""),C50+C49+getClearance(C$40,C$25:C$33,$C$12)+shelfHeight,"") ->  | D47: =IF(AND(D46<>"",D49<>""),D50+D49+getClearance(D$40,D$25:D$33,$C$12)+shelfHeight,"") ->  | E47: =IF(AND(E46<>"",E49<>""),E50+E49+getClearance(E$40,E$25:E$33,$C$12)+shelfHeight,"") ->  | F47: =IF(AND(F46<>"",F49<>""),F50+F49+getClearance(F$40,F$25:F$33,$C$12)+shelfHeight,"") ->  | G47: =IF(AND(G46<>"",G49<>""),G50+G49+getClearance(G$40,G$25:G$33,$C$12)+shelfHeight,"") -> 
B48: Frontstopper 7 | C48: =getFrontstop(C49) ->  | D48: =getFrontstop(D49) ->  | E48: =getFrontstop(E49) ->  | F48: =getFrontstop(F49) ->  | G48: =getFrontstop(G49) -> 
B49: Product height Shelf 7 | C49: =_xlfn.LET(_xlpm.value,_xlfn.XLOOKUP($B49,$B$25:$B$33,N$25:N$33,NA()),IF(ISBLANK(_xlpm.value),"",_xlpm.value)) ->  | D49: =_xlfn.LET(_xlpm.value,_xlfn.XLOOKUP($B49,$B$25:$B$33,O$25:O$33,NA()),IF(ISBLANK(_xlpm.value),"",_xlpm.value)) -> 
B50: Shelf height H7 | C50: =IF(AND(C49<>"",C52<>""),C53+C52+getClearance(C$40,C$25:C$33,$C$12)+shelfHeight,"") ->  | D50: =IF(AND(D49<>"",D52<>""),D53+D52+getClearance(D$40,D$25:D$33,$C$12)+shelfHeight,"") ->  | E50: =IF(AND(E49<>"",E52<>""),E53+E52+getClearance(E$40,E$25:E$33,$C$12)+shelfHeight,"") ->  | F50: =IF(AND(F49<>"",F52<>""),F53+F52+getClearance(F$40,F$25:F$33,$C$12)+shelfHeight,"") ->  | G50: =IF(AND(G49<>"",G52<>""),G53+G52+getClearance(G$40,G$25:G$33,$C$12)+shelfHeight,"") -> 
B51: Frontstopper 6 | C51: =getFrontstop(C52) ->  | D51: =getFrontstop(D52) ->  | E51: =getFrontstop(E52) ->  | F51: =getFrontstop(F52) ->  | G51: =getFrontstop(G52) -> 
B52: Product height Shelf 6 | C52: =_xlfn.LET(_xlpm.value,_xlfn.XLOOKUP($B52,$B$25:$B$33,N$25:N$33,NA()),IF(ISBLANK(_xlpm.value),"",_xlpm.value)) ->  | D52: =_xlfn.LET(_xlpm.value,_xlfn.XLOOKUP($B52,$B$25:$B$33,O$25:O$33,NA()),IF(ISBLANK(_xlpm.value),"",_xlpm.value)) -> 
B53: Shelf height H6 | C53: =IF(AND(C52<>"",C55<>""),C56+C55+getClearance(C$40,C$25:C$33,$C$12)+shelfHeight,"") ->  | D53: =IF(AND(D52<>"",D55<>""),D56+D55+getClearance(D$40,D$25:D$33,$C$12)+shelfHeight,"") ->  | E53: =IF(AND(E52<>"",E55<>""),E56+E55+getClearance(E$40,E$25:E$33,$C$12)+shelfHeight,"") ->  | F53: =IF(AND(F52<>"",F55<>""),F56+F55+getClearance(F$40,F$25:F$33,$C$12)+shelfHeight,"") ->  | G53: =IF(AND(G52<>"",G55<>""),G56+G55+getClearance(G$40,G$25:G$33,$C$12)+shelfHeight,"") -> 
B54: Frontstopper 5 | C54: =getFrontstop(C55) ->  | D54: =getFrontstop(D55) ->  | E54: =getFrontstop(E55) ->  | F54: =getFrontstop(F55) ->  | G54: =getFrontstop(G55) -> 
B55: Product height Shelf 5 | C55: =_xlfn.LET(_xlpm.value,_xlfn.XLOOKUP($B55,$B$25:$B$33,N$25:N$33,NA()),IF(ISBLANK(_xlpm.value),"",_xlpm.value)) ->  | D55: =_xlfn.LET(_xlpm.value,_xlfn.XLOOKUP($B55,$B$25:$B$33,O$25:O$33,NA()),IF(ISBLANK(_xlpm.value),"",_xlpm.value)) -> 
B56: Shelf height H5 | C56: =IF(AND(C55<>"",C58<>""),C59+C58+getClearance(C$40,C$25:C$33,$C$12)+shelfHeight,"") ->  | D56: =IF(AND(D55<>"",D58<>""),D59+D58+getClearance(D$40,D$25:D$33,$C$12)+shelfHeight,"") ->  | E56: =IF(AND(E55<>"",E58<>""),E59+E58+getClearance(E$40,E$25:E$33,$C$12)+shelfHeight,"") ->  | F56: =IF(AND(F55<>"",F58<>""),F59+F58+getClearance(F$40,F$25:F$33,$C$12)+shelfHeight,"") ->  | G56: =IF(AND(G55<>"",G58<>""),G59+G58+getClearance(G$40,G$25:G$33,$C$12)+shelfHeight,"") -> 
B57: Frontstopper 4 | C57: =getFrontstop(C58) ->  | D57: =getFrontstop(D58) ->  | E57: =getFrontstop(E58) ->  | F57: =getFrontstop(F58) ->  | G57: =getFrontstop(G58) -> 
B58: Product height Shelf 4 | C58: =_xlfn.LET(_xlpm.value,_xlfn.XLOOKUP($B58,$B$25:$B$33,N$25:N$33,NA()),IF(ISBLANK(_xlpm.value),"",_xlpm.value)) ->  | D58: =_xlfn.LET(_xlpm.value,_xlfn.XLOOKUP($B58,$B$25:$B$33,O$25:O$33,NA()),IF(ISBLANK(_xlpm.value),"",_xlpm.value)) -> 
B59: Shelf height H4 | C59: =IF(AND(C58<>"",C61<>""),C62+C61+getClearance(C$40,C$25:C$33,$C$12)+shelfHeight,"") ->  | D59: =IF(AND(D58<>"",D61<>""),D62+D61+getClearance(D$40,D$25:D$33,$C$12)+shelfHeight,"") ->  | E59: =IF(AND(E58<>"",E61<>""),E62+E61+getClearance(E$40,E$25:E$33,$C$12)+shelfHeight,"") ->  | F59: =IF(AND(F58<>"",F61<>""),F62+F61+getClearance(F$40,F$25:F$33,$C$12)+shelfHeight,"") ->  | G59: =IF(AND(G58<>"",G61<>""),G62+G61+getClearance(G$40,G$25:G$33,$C$12)+shelfHeight,"") -> 
B60: Frontstopper 3 | C60: =getFrontstop(C61) -> 54 mm | D60: =getFrontstop(D61) -> 143 mm | E60: =getFrontstop(E61) ->  | F60: =getFrontstop(F61) ->  | G60: =getFrontstop(G61) -> 
B61: Product height Shelf 3 | C61: =_xlfn.LET(_xlpm.value,_xlfn.XLOOKUP($B61,$B$25:$B$33,N$25:N$33,NA()),IF(ISBLANK(_xlpm.value),"",_xlpm.value)) -> 115 | D61: =_xlfn.LET(_xlpm.value,_xlfn.XLOOKUP($B61,$B$25:$B$33,O$25:O$33,NA()),IF(ISBLANK(_xlpm.value),"",_xlpm.value)) -> 325
B62: Shelf height H3 | C62: =IF(AND(C61<>"",C64<>""),C65+C64+getClearance(C$40,C$25:C$33,$C$12)+shelfHeight,"") -> 639 | D62: =IF(AND(D61<>"",D64<>""),D65+D64+getClearance(D$40,D$25:D$33,$C$12)+shelfHeight,"") -> 571 | E62: =IF(AND(E61<>"",E64<>""),E65+E64+getClearance(E$40,E$25:E$33,$C$12)+shelfHeight,"") ->  | F62: =IF(AND(F61<>"",F64<>""),F65+F64+getClearance(F$40,F$25:F$33,$C$12)+shelfHeight,"") ->  | G62: =IF(AND(G61<>"",G64<>""),G65+G64+getClearance(G$40,G$25:G$33,$C$12)+shelfHeight,"") -> 
B63: Frontstopper 2 | C63: =getFrontstop(C64) -> 113 mm | D63: =getFrontstop(D64) -> 54 mm | E63: =getFrontstop(E64) ->  | F63: =getFrontstop(F64) ->  | G63: =getFrontstop(G64) -> 
B64: Product height Shelf 2 | C64: =_xlfn.LET(_xlpm.value,_xlfn.XLOOKUP($B64,$B$25:$B$33,N$25:N$33,NA()),IF(ISBLANK(_xlpm.value),"",_xlpm.value)) -> 213 | D64: =_xlfn.LET(_xlpm.value,_xlfn.XLOOKUP($B64,$B$25:$B$33,O$25:O$33,NA()),IF(ISBLANK(_xlpm.value),"",_xlpm.value)) -> 115
B65: Shelf height H2 | C65: =IF(AND(C64<>"",C67<>""),C68+C67+getClearance(C$40,C$25:C$33,$C$12)+shelfHeight,"") -> 374 | D65: =IF(AND(D64<>"",D67<>""),D68+D67+getClearance(D$40,D$25:D$33,$C$12)+shelfHeight,"") -> 404 | E65: =IF(AND(E64<>"",E67<>""),E68+E67+getClearance(E$40,E$25:E$33,$C$12)+shelfHeight,"") ->  | F65: =IF(AND(F64<>"",F67<>""),F68+F67+getClearance(F$40,F$25:F$33,$C$12)+shelfHeight,"") ->  | G65: =IF(AND(G64<>"",G67<>""),G68+G67+getClearance(G$40,G$25:G$33,$C$12)+shelfHeight,"") -> 
B66: Frontstopper 1 | C66: =getFrontstop(C67) -> 54 mm | D66: =getFrontstop(D67) -> 54 mm | E66: =getFrontstop(E67) ->  | F66: =getFrontstop(F67) ->  | G66: =getFrontstop(G67) -> 
B67: Product height Shelf 1 | C67: =_xlfn.LET(_xlpm.value,_xlfn.XLOOKUP($B67,$B$25:$B$33,N$25:N$33,NA()),IF(ISBLANK(_xlpm.value),"",_xlpm.value)) -> 115 | D67: =_xlfn.LET(_xlpm.value,_xlfn.XLOOKUP($B67,$B$25:$B$33,O$25:O$33,NA()),IF(ISBLANK(_xlpm.value),"",_xlpm.value)) -> 145
B68: Shelf height H1 | C68: =IF(C37>0,_xlfn.XLOOKUP(getMultideck,tableMultidecks[Multidecks],tableMultidecks[H1],""),"") -> 207 | D68: =IF(D37>0,_xlfn.XLOOKUP(getMultideck,tableMultidecks[Multidecks],tableMultidecks[H1],""),"") -> 207 | E68: =IF(E37>0,_xlfn.XLOOKUP(getMultideck,tableMultidecks[Multidecks],tableMultidecks[H1],""),"") ->  | F68: =IF(F37>0,_xlfn.XLOOKUP(getMultideck,tableMultidecks[Multidecks],tableMultidecks[H1],""),"") ->  | G68: =IF(G37>0,_xlfn.XLOOKUP(getMultideck,tableMultidecks[Multidecks],tableMultidecks[H1],""),"") -> 
B70: Order information
B71: ="Number of TurnLoaders (" & getNoIncludedShelves($C$9)*E71 & " shelves included)" -> Number of TurnLoaders (8 shelves included) | C71: =INDEX(tableArticleNumbers[],_xlfn.XMATCH("TurnLoader",tableArticleNumbers[Article]),_xlfn.XMATCH($C$9,tableArticleNumbers[#Headers])) -> 469347 | E71: =C35 -> 2
B72: Number of extra shelves | C72: =INDEX(tableArticleNumbers[],_xlfn.XMATCH("Extra Shelf",tableArticleNumbers[Article]),_xlfn.XMATCH($C$9,tableArticleNumbers[#Headers])) -> 469028 | E72: =MAX(0,C38-E71*getNoIncludedShelves($C$9)) -> 0
B73: Frontstopper 54 mm | C73: =INDEX(tableArticleNumbers[],_xlfn.XMATCH("FS54",tableArticleNumbers[Article]),_xlfn.XMATCH($C$9,tableArticleNumbers[#Headers])) -> 468942 | E73: =COUNTIF(C41:G67,"54 mm") -> 4
B74: Frontstopper 113 mm | C74: =INDEX(tableArticleNumbers[],_xlfn.XMATCH("FS113",tableArticleNumbers[Article]),_xlfn.XMATCH($C$9,tableArticleNumbers[#Headers])) -> --- | E74: =COUNTIF(C42:G68,"113 mm") & IF(OR(C9="Multideck",C9="Coldfront")," (included)","") -> 1 (included)
B75: Frontstopper 143 mm | C75: =INDEX(tableArticleNumbers[],_xlfn.XMATCH("FS143",tableArticleNumbers[Article]),_xlfn.XMATCH($C$9,tableArticleNumbers[#Headers])) -> 468958 | E75: =COUNTIF(C43:G69,"143 mm") -> 1

Sheet Settings (hidden)
A1: Frontstop | B1: From | C1: To | E1: Clearance | F1: Value | G1: Description | J1: TurnLoader Type | K1: Picture
A2: 54 mm | B2: 0 | C2: 150 | F2: even | G2: Even | J2: ColdFront | K2: PictureColdfront
A3: 113 mm | B3: 151 | C3: 280 | F3: 15 | G3: 15 mm | J3: Multideck | K3: PictureMultideck
A4: 143 mm | B4: 280 | C4: 1000
A10: Article | B10: ColdFront | C10: Multideck | I10: Selected: | J10: =_xlfn.XLOOKUP(Project!C9, tableTurnLoaderTypes[TurnLoader Type], tableTurnLoaderTypes[Picture], "nope", 0) -> PictureMultideck
A11: TurnLoader | B11: 473390 | C11: 469347
A12: Extra shelf | B12: 473391 | C12: 469028
A13: FS54 | B13: Art.No Missing | C13: 468942
A14: FS113 | B14: --- | C14: ---
A15: FS143 | B15: Art.No Missing | C15: 468958
A19: Multidecks for dropdown, dont write stuff underneath
A20: =_xlfn._xlws.FILTER(tableMultidecks[Multidecks],tableMultidecks[Multidecks]<>"Coldfront","") -> Carrier MonaxEco 63

Sheet Multidecks
A1: Multidecks | B1: Inner height | C1: Shelf depth | D1: Distans backwall to door | E1: Usable Height | F1: H1 | G1: TurnLoader
A2: Coldfront | E2: 1740 | F2: 192 | G2: TurnLoader CF 1250/550
A3: Carrier MonaxEco 63 | B3: 1785 | C3: 500 | D3: 610 | E3: 1483 | F3: 207 | G3: TurnLoader MD 1250/550
I4: <-- Add more multidecks here

Sheet Products
A1: Name | B1: Product Height
A2: 25 cl Slim Can | B2: 135
A3: 33 cl Classic Can | B3: 115
A4: 33 cl Sleek Can | B4: 145
A5: 33 cl Glass Bottle | B5: 240
A6: 50 cl Std Can | B6: 168
A7: 50 cl PET Bottle | B7: 213
A8: 150 cl PET Bottle | B8: 325
C9: <-- Add more products here
